Cogmind - Beta 10.2 @@@ ROGUE MODE // 2021.06.20 @ 03:56:15 Player: BOTHUNTER Result: Destroyed by Y-54 Guardian with Gatling Laser Performance ------------- Evolutions (3) 1500 Regions Visited (9) 1800 Robots Destroyed (22) 110 Value Destroyed (601) 601 Prototype IDs (5) 100 Alien Tech Used (0) 0 Bonus (326) 326 TOTAL SCORE: 4437 Bonus ------- High Alert Combat Kills 26 Aligned with FarCom 300 Cogmind --------- Core Integrity 0/700 Matter 152/300 Energy 99/100 System Corruption 0% Temperature Cool (18) Movement Core (50) Location -7/Storage Parts ------- > --- POWER (1) -------- (None) > --- PROPULSION (2) --- (None) > --- UTILITY (8) ------ Enhanced Optical Array Improved Signal Interpreter Transport Network Coupler Advanced Targeting Computer Hacking Suite Hacking Suite > --- WEAPON (2) ------- (None) > --- INVENTORY (4) ---- Advanced Weight Redist. System Trap Reconfigurator Heavy Laser Peak State ------------ > --- POWER ------------ Light Ion Engine > --- PROPULSION ------- Flight Unit Flight Unit > --- UTILITY ---------- Medium Battery Weight Redist. System Advanced Weight Redist. System Improved Signal Interpreter Targeting Computer Melee Analysis Suite Hardened Light Armor Plating Trap Reconfigurator > --- WEAPON ----------- Heavy EM Shotgun Heavy Laser > --- INVENTORY -------- Improved ECM Suite Hacking Suite [Rating: 34] Favorites ----------- Power Light Ion Engine Engine Light Ion Engine Propulsion Flight Unit Flight Unit Flight Unit Utility Targeting Computer Device Weight Redist. System Storage Medium Battery Processor Targeting Computer Hackware Hacking Suite Protection Hardened Light Armor Plating Weapon Heavy EM Shotgun Energy Gun Heavy EM Shotgun Energy Cannon YOLO Cannon Ballistic Gun Assault Rifle Launcher Scatter Rocket Array Special Weapon Mining Laser Piercing Weapon Spear Build | -11 -10 -10 -10 -9 -8 -7 -7 -7 -7 ------- Run | Scr Mat Min Exi Min Mat Fac Was Fac Sto Slots Evolved 6 | . . . . . 4 2 . . . Power . | . . . . . . . . . . Propulsion . | . . . . . . . . . . Utility 6 | . . . . . 4 2 . . . Weapon . | . . . . . . . . . . Parts Attached 50 | 2 8 3 3 . 11 3 1 14 5 Power 5 | . 1 2 . . . . . 1 1 Engine 5 | . 1 2 . . . . . 1 1 Core . | . . . . . . . . . . Reactor . | . . . . . . . . . . Propulsion 4 | . 3 1 . . . . . . . Treads . | . . . . . . . . . . Leg . | . . . . . . . . . . Wheel . | . . . . . . . . . . Hover . | . . . . . . . . . . Flight 4 | . 3 1 . . . . . . . Utility 26 | . 2 . 1 . 8 3 1 10 1 Device 13 | . 1 . 1 . 4 2 1 4 . Storage 3 | . . . . . 1 . . 2 . Processor 6 | . 1 . . . 1 1 . 3 . Hackware 2 | . . . . . . . . 1 1 Protection 2 | . . . . . 2 . . . . Artifact . | . . . . . . . . . . Weapon 15 | 2 2 . 2 . 3 . . 3 3 Energy Gun 5 | . . . . . 1 . . 3 1 Energy Cannon 1 | . . . 1 . . . . . . Ballistic Gun 6 | 2 1 . 1 . 2 . . . . Ballistic Cannon . | . . . . . . . . . . Launcher 1 | . . . . . . . . . 1 Special Weapon 1 | . 1 . . . . . . . . Impact Weapon . | . . . . . . . . . . Slashing Weapon . | . . . . . . . . . . Piercing Weapon 1 | . . . . . . . . . 1 Special Melee Weapon . | . . . . . . . . . . Unidentified Prototypes 5 | . . . 2 . 2 . . . 1 Parts Lost 12 | . 1 1 . . . . 1 1 8 Power 2 | . . . . . . . . 1 1 Propulsion 3 | . 1 . . . . . . . 2 Utility 3 | . . . . . . . 1 . 2 Weapon 4 | . . 1 . . . . . . 3 Highest Loss Streak 5 | . 1 1 . . . . 1 1 5 Average Slot Usage (%) 76 | . 61 77 71 71 59 80 68 84 68 Engine 6 | . 3 6 14 14 9 7 7 7 . Flight 17 | . 8 25 28 28 18 15 15 15 5 Device 13 | . 13 14 . . 3 20 13 19 5 Storage 1 | . . . . . . . . 5 . Processor 20 | . 8 14 14 14 16 22 23 24 32 Hackware 1 | . . . . . . . . . 11 Protection 4 | . . . . . 4 7 7 7 4 Energy Gun 2 | . . . . . 1 7 1 2 4 Ballistic Gun 3 | . 27 2 9 14 6 . . . . Special Weapon 2 | . . 14 3 . . . . . . Naked Turns . | . . . . . . . . . . Heaviest Build 24 | 3 6 5 5 5 24 14 13 18 9 Greatest Support 23 | 3 8 8 8 8 14 14 14 23 14 Greatest Overweight (x) 5 | . 1 . . . 2 . . 5 2 Average Overweight (x) . | . . . . . . . . . . Largest Inventory Capacity 4 | 4 4 4 4 4 4 4 4 4 4 Average Capacity 4 | 4 4 4 4 4 4 4 4 4 4 Most Carried 4 | 4 4 4 4 4 4 4 4 4 4 Average Carried 3 | 1 3 3 3 4 3 3 4 3 3 Final Capacity 4 | 4 4 4 4 4 4 4 4 4 4 Final Carried 4 | 4 3 4 4 4 4 4 4 4 3 Class Distribution -------------------- 85% | Mutant 5% | Scavenger-Mutant 3% | Scavenger-Scout Dominant Class ---------------- Mutant | -10/Materials Mutant | -10/Mines Mutant | -10/Exiles Mutant | -9/Mines Mutant | -8/Materials Mutant | -7/Factory Mutant | -7/Waste Mutant | -7/Factory Scavenger-Mutant | -7/Storage Resources | -11 -10 -10 -10 -9 -8 -7 -7 -7 -7 ----------- Run | Scr Mat Min Exi Min Mat Fac Was Fac Sto Matter Collected 728 | 205 32 40 97 . 44 . . 15 295 Remotely . | . . . . . . . . . . Salvage Created 822 | . 92 . . . 98 . . 89 543 Parts 45 | . 9 . . . 3 . . 10 23 Haulers Intercepted 4 | . . . . . 2 . . 1 1 Recyclers Shooed 4 | . . . . . . . . 1 3 Parts Field Recycled . | . . . . . . . . . . Retrieved Matter . | . . . . . . . . . . Parts Self-Destructed . | . . . . . . . . . . Prevented . | . . . . . . . . . . Kills | -11 -10 -10 -10 -9 -8 -7 -7 -7 -7 ------- Run | Scr Mat Min Exi Min Mat Fac Was Fac Sto Combat Hostiles Destroyed 13 | . 4 . . . . . . . 9 Melee 2 | . . . . . . . . . 2 Guns 5 | . 4 . . . . . . . 1 AOE 5 | . . . . . . . . . 5 Classes Destroyed 9 | . 2 . . . 1 . . 1 5 Worker 1 | . . . . . . . . . 1 Hauler 4 | . . . . . 2 . . 1 1 Recycler 1 | . . . . . . . . . 1 Operator 3 | . . . . . . . . 2 1 Swarmer 3 | . 3 . . . . . . . . Grunt 7 | . 1 . . . . . . . 6 Sentry 1 | . . . . . . . . . 1 Hunter 1 | . . . . . . . . . 1 Programmer 1 | . . . . . . . . . 1 Best Kill Streak 7 | . 3 . . . 2 . . 1 7 Combat Bots Only 5 | . 3 . . . . . . . 5 Max Kills in Single Turn 3 | . 1 . . . 1 . . 1 3 Gunslinging . | . . . . . . . . . . Exploded 2 | . . . . . . . . . 2 Melee 1 | . . . . . . . . . 1 Uniques/NPCs Destroyed . | . . . . . . . . . . Combat | -11 -10 -10 -10 -9 -8 -7 -7 -7 -7 -------- Run | Scr Mat Min Exi Min Mat Fac Was Fac Sto Damage Taken 1571 | . 133 174 . . 15 . 30 57 1162 Core 781 | . 9 67 . . . . . 21 684 Absorbed by Shields 24 | . . . . . . . . . 24 Core Remaining (%) 89 | 100 . . . 69 100 . . . . Volleys Fired 65 | . 12 4 . . 10 1 . 13 25 Largest 2 | . 2 1 . . 1 1 . 1 1 Hottest 100 | . 40 100 . . 50 50 . 69 69 Shots Fired 77 | . 24 4 . . 10 1 . 13 25 Gun 70 | . 24 . . . 10 1 . 13 22 Cannon . | . . . . . . . . . . Launcher 3 | . . . . . . . . . 3 Special 4 | . . 4 . . . . . . . Kinetic 32 | . 24 . . . 8 . . . . Thermal 29 | . . 4 . . . . . 13 12 Explosive 3 | . . . . . . . . . 3 Electromagnetic 13 | . . . . . 2 1 . . 10 Robot Hit Streak 17 | . 8 . . . 5 6 . 4 17 Robot Miss Streak 3 | . 2 . . . 1 1 . 3 1 Penetration Max . | . . . . . . . . . . Secondary Targets . | . . . . . . . . . . Shots Hit Robots 67 | . 18 . . . 8 1 . 7 33 Core Hits 55 | . 7 . . . 4 . . 3 41 Critical Hits 1 | . 1 . . . . . . . . Critical Kills 1 | . 1 . . . . . . . . Critical Parts Destroyed . | . . . . . . . . . . Melee Attacks 13 | . . . . . . . . . 13 Impact . | . . . . . . . . . . Slashing . | . . . . . . . . . . Piercing 13 | . . . . . . . . . 13 Sneak Attacks . | . . . . . . . . . . Combat Hostiles . | . . . . . . . . . . Follow-up Attacks . | . . . . . . . . . . Damage Inflicted 2057 | . 141 . . . 118 15 . 133 1650 Guns 856 | . 141 . . . 118 15 . 133 449 Cannons . | . . . . . . . . . . Explosions 688 | . . . . . . . . . 688 Melee 492 | . . . . . . . . . 492 Ramming 21 | . . . . . . . . . 21 Kinetic 220 | . 141 . . . 79 . . . . Thermal 349 | . . . . . . . . 133 216 Explosive 688 | . . . . . . . . . 688 Electromagnetic 287 | . . . . . 39 15 . . 233 Impact . | . . . . . . . . . . Slashing . | . . . . . . . . . . Piercing 492 | . . . . . . . . . 492 Highest Corruption 9 | . . . . . . . 9 9 . Average Corruption 5 | . . . . . . . 9 5 . Corruption Purged 9 | . . . . . . . . 9 . Effects 11 | . . . . . . . . 11 . Matter Fused 5 | . . . . . . . . 5 . Heat Flow Errors 1 | . . . . . . . . 1 . Energy Discharges 4 | . . . . . . . . 4 . Data Loss (minor) 1 | . . . . . . . . 1 . Overload Shots . | . . . . . . . . . . Overflow Damage 86 | . . . . . . . . . 86 Projectiles . | . . . . . . . . . . Explosions . | . . . . . . . . . . Melee 86 | . . . . . . . . . 86 Knockbacks . | . . . . . . . . . . Impact . | . . . . . . . . . . Kinetic . | . . . . . . . . . . Secondary . | . . . . . . . . . . Self-Inflicted Damage 192 | . . . . . . . . . 192 Shots 8 | . . . . . . . . . 8 Rammed 5 | . . . . . . . . . 5 Targets Rammed 5 | . . . . . . . . . 5 Kicked . | . . . . . . . . . . Crushed . | . . . . . . . . . . Highest Temperature 194 | . 20 58 . . 24 8 . 194 69 Average Temperature 27 | . 8 23 . . 13 6 . 36 28 Received Heat Transfer 543 | . 42 18 . . 9 . . 18 456 Siege Activations . | . . . . . . . . . . Robots Corrupted . | . . . . . . . . . . Combat Hostiles . | . . . . . . . . . . Parts Fried 2 | . . . . . . . . . 2 Impact Corruptions 1 | . . . . . . . . . 1 Robots Melted . | . . . . . . . . . . Combat Hostiles . | . . . . . . . . . . Parts Melted 2 | . . . . . . . . . 2 Heat Transferred 629 | . . . . . . . . 259 370 Parts Sabotaged . | . . . . . . . . . . Parts Stolen . | . . . . . . . . . . Parts Stripped . | . . . . . . . . . . Power Chain Reactions . | . . . . . . . . . . Missiles Intercepted . | . . . . . . . . . . Alert | -11 -10 -10 -10 -9 -8 -7 -7 -7 -7 ------- Run | Scr Mat Min Exi Min Mat Fac Was Fac Sto Peak Influence 536 | . 129 84 . . 7 32 26 51 536 Initial 49 | . . 49 . . . . 11 . 18 Average 28 | . 46 61 . . . 5 14 6 115 Maximum Alert Level 2 | . . . . . . . . . 2 Low Security (%) 98 | 100 100 100 . 100 100 100 100 100 86 Level 1 . | . . . . . . . . . 4 Level 2 . | . . . . . . . . . 9 Level 3 . | . . . . . . . . . . Level 4 . | . . . . . . . . . . Level 5 . | . . . . . . . . . . High Security . | . . . . . . . . . . Max Security . | . . . . . . . . . . Squads Dispatched 16 | . 3 . . . 3 2 . 3 5 Investigation 7 | . 3 . . . 1 1 . . 2 Extermination 2 | . . . . . . 1 . 1 . Reinforcement 7 | . . . . . 2 . . 2 3 Assault . | . . . . . . . . . . Garrison . | . . . . . . . . . . Intercept . | . . . . . . . . . . Construction Impeded 1 | . . . . . . . . . 1 Haulers Reinforced 1 | . . . . . . . . . 1 Stealth | -11 -10 -10 -10 -9 -8 -7 -7 -7 -7 --------- Run | Scr Mat Min Exi Min Mat Fac Was Fac Sto Distress Signals 6 | . 1 . . . 2 . . . 3 Communications Jammed . | . . . . . . . . . . Distress Signals . | . . . . . . . . . . Times Spotted 50 | . 5 5 . . 4 1 5 5 25 Peak Tracking Total 9 | . 4 2 . . 3 1 5 2 9 Tactical Retreats 7 | . . 3 . . . . . . 4 Traps | -11 -10 -10 -10 -9 -8 -7 -7 -7 -7 ------- Run | Scr Mat Min Exi Min Mat Fac Was Fac Sto Traps Triggered 3 | . . . . . 1 1 . . 1 Indirectly . | . . . . . . . . . . Trap Hack Attempts . | . . . . . . . . . . Triggered . | . . . . . . . . . . Disarmed . | . . . . . . . . . . Reprogrammed . | . . . . . . . . . . Reused 2 | . . . . . . 2 . . . Traps Reconfigurated 5 | . . . . . . 4 . 1 . Traps Extracted . | . . . . . . . . . . Installed . | . . . . . . . . . . Triggered 2 | . . . . . . 2 . . . Machines | -11 -10 -10 -10 -9 -8 -7 -7 -7 -7 ---------- Run | Scr Mat Min Exi Min Mat Fac Was Fac Sto Machines Disabled 2 | . . . . . . . . . 2 Max in Single Turn 1 | . . . . . . . . . 1 Garrison Access 1 | . . . . . . 1 . . . Machines Sabotaged . | . . . . . . . . . . Garrisons Compromised . | . . . . . . . . . . Overloaded Fab Kills . | . . . . . . . . . . Fab Network Shutdowns . | . . . . . . . . . . Hacking | -11 -10 -10 -10 -9 -8 -7 -7 -7 -7 --------- Run | Scr Mat Min Exi Min Mat Fac Was Fac Sto Machines Accessed 18 | . 4 1 . . 2 3 . 3 5 Terminals 13 | . 3 . . . 1 2 . 3 4 Fabricators . | . . . . . . . . . . Repair Stations . | . . . . . . . . . . Recycling Units 2 | . 1 . . . . . . . 1 Scanalyzers 1 | . . . . . 1 . . . . Garrison Access 1 | . . . . . . 1 . . . Total Hacks 41 | . 15 1 . . 5 6 . 7 7 Successful 20 | . 5 1 . . 3 3 . 3 5 Failed 21 | . 10 . . . 2 3 . 4 2 Catastrophic 2 | . . . . . 1 1 . . . Database Lockouts . | . . . . . . . . . . Manual 26 | . 11 . 1 . 2 4 . 3 5 Terminals 30 | . 11 . . . 2 4 . 7 6 Fabricators . | . . . . . . . . . . Repair Stations . | . . . . . . . . . . Recycling Units 5 | . 4 . . . . . . . 1 Scanalyzers 3 | . . . . . 3 . . . . Garrison Access 2 | . . . . . . 2 . . . Terminal Hacks 5 | . 1 1 . . . . . 1 2 Part Schematic 1 | . . . . . . . . . 1 Open Door 2 | . . 1 . . . . . . 1 Terminal Index 2 | . 1 . . . . . . 1 . Fabricator Hacks . | . . . . . . . . . . Repair Station Hacks . | . . . . . . . . . . Recycling Unit Hacks . | . . . . . . . . . . Scanalyzer 3 | . . . . . 3 . . . . Insert Component 2 | . . . . . 2 . . . . Analyze 1 | . . . . . 1 . . . . Garrison Access Hacks 1 | . . . . . . 1 . . . Seal Access 1 | . . . . . . 1 . . . Unauthorized Hacks 11 | . 4 . . . . 2 . 2 3 Terminals 10 | . 4 . . . . 2 . 2 2 Track 1 | . 1 . . . . . . . . Assimilate 1 | . . . . . . . . . 1 Botnet 6 | . 2 . . . . 2 . 2 . Disrupt 1 | . . . . . . . . . 1 Operators 1 | . 1 . . . . . . . . Fabricators . | . . . . . . . . . . Repair Stations . | . . . . . . . . . . Recycling Units 1 | . . . . . . . . . 1 Tunnel 1 | . . . . . . . . . 1 Scanalyzers . | . . . . . . . . . . Garrison Access . | . . . . . . . . . . Data Cores Recovered . | . . . . . . . . . . Used . | . . . . . . . . . . Hacking Detections 13 | . 4 . . . 2 2 . 3 2 Full Trace Events 5 | . 3 . . . . 1 . . 1 Feedback Events . | . . . . . . . . . . Feedback Blocked . | . . . . . . . . . . Robot Schematics Acquired . | . . . . . . . . . . Robots Built . | . . . . . . . . . . Matter . | . . . . . . . . . . Time . | . . . . . . . . . . Total Robot Build Rating . | . . . . . . . . . . Part Schematics Acquired 2 | . . . . . 1 . . . 1 Parts Built . | . . . . . . . . . . Matter . | . . . . . . . . . . Time . | . . . . . . . . . . Total Part Build Rating . | . . . . . . . . . . Parts Repaired . | . . . . . . . . . . Time . | . . . . . . . . . . Parts Recycled . | . . . . . . . . . . Recycled Matter . | . . . . . . . . . . Retrieved Matter . | . . . . . . . . . . Retrieved Components . | . . . . . . . . . . Parts Scanalyzed 1 | . . . . . 1 . . . . Part Schematics Acquired 1 | . . . . . 1 . . . . Parts Damaged . | . . . . . . . . . . Bothacking | -11 -10 -10 -10 -9 -8 -7 -7 -7 -7 ------------ Run | Scr Mat Min Exi Min Mat Fac Was Fac Sto Used RIF Installer . | . . . . . . . . . . Robots Hacked . | . . . . . . . . . . Non-combat . | . . . . . . . . . . Combat . | . . . . . . . . . . Robot Hacks Applied . | . . . . . . . . . . Relay Couplers Released . | . . . . . . . . . . Robots Rewired . | . . . . . . . . . . Allies Hacked . | . . . . . . . . . . Hacks Repelled . | . . . . . . . . . . Allies | -11 -10 -10 -10 -9 -8 -7 -7 -7 -7 -------- Run | Scr Mat Min Exi Min Mat Fac Was Fac Sto Total Allies 2 | . . . . . . . 1 . 1 Largest Group 1 | . . . . . . . 1 . 1 Highest-Rated Group 31 | . . . . . . . 31 . 26 Highest-Rated Ally 31 | . . . . . . . 31 . 26 Total Orders 3 | . . . . . 3 . . . . RETURN 3 | . . . . . 3 . . . . Ally Attacks 14 | . . . . . . . 14 . . Total Damage 253 | . . . . . . . 253 . . Kills . | . . . . . . . . . . Allies Corrupted . | . . . . . . . . . . Allies Melted . | . . . . . . . . . . Intel | -11 -10 -10 -10 -9 -8 -7 -7 -7 -7 ------- Run | Scr Mat Min Exi Min Mat Fac Was Fac Sto Robot Analysis Total . | . . . . . . . . . . Derelict Logs Recovered 3 | . . 3 . . . . . . . Drone Launches 26 | . . . . . 26 . . . . Drone Recoveries 10 | . . . . . 10 . . . . Exploration | -11 -10 -10 -10 -9 -8 -7 -7 -7 -7 ------------- Run | Scr Mat Min Exi Min Mat Fac Was Fac Sto Turns Passed 2696 | 47 146 413 200 89 197 398 40 905 261 Spaces Moved 2306 | 81 167 493 355 108 211 181 91 477 142 Core 352 | 81 104 3 . . . . . 70 94 Treads . | . . . . . . . . . . Legs . | . . . . . . . . . . Wheels . | . . . . . . . . . . Hover . | . . . . . . . . . . Flight 1954 | . 63 490 355 108 211 181 91 407 48 Fastest Speed 37 | 50 37 37 37 37 37 37 37 37 37 Average Speed 53 | 50 60 37 37 37 46 37 37 91 63 Slowest Speed 300 | 50 120 50 37 37 197 37 37 300 200 Overloaded Moves . | . . . . . . . . . . Propulsion Burnouts . | . . . . . . . . . . Robots Hopped 27 | . 1 2 . . 10 1 2 9 2 Cave-ins Triggered . | . . . . . . . . . . Exploration Rate (%) 41 | 4 32 87 77 44 35 7 78 14 41 Regions Visited 9 Branch Regions 4 Pre-discovered Areas 2 | . . 1 . . . . . . 1 Known Exits Taken 1 | . . . . . . . . 1 . Unknown Exits Taken 6 | 1 1 1 1 1 1 . . . . Scrap Searched 1 | . . 1 . . . . . . . Spaces Dug 5 | . . 4 . . . . . . 1 Terrain Destroyed 48 | . . 4 . . . . . . 44 Melee 1 | . . . . . . . . . 1 Projectile 4 | . . 4 . . . . . . . AOE 43 | . . . . . . . . . 43 Terrain Rammed . | . . . . . . . . . . Walls Destroyed . | . . . . . . . . . . Machines Disabled . | . . . . . . . . . . Actions | -11 -10 -10 -10 -9 -8 -7 -7 -7 -7 --------- Run | Scr Mat Min Exi Min Mat Fac Was Fac Sto Total 3641 | 86 190 705 424 156 289 509 94 926 262 Wait 1171 | . . 204 60 49 57 324 3 417 57 Move 2250 | 80 164 488 354 107 194 179 87 459 138 Hop 21 | . 1 2 . . 6 1 1 8 2 Pick Up 13 | 4 . 2 1 . 2 . 1 2 1 Fast Attach 34 | 2 7 1 3 . 7 2 1 9 2 Attach 15 | . . 2 . . 4 1 . 5 3 Detach 13 | . . 1 1 . 4 1 . 5 1 Swap 1 | . 1 . . . . . . . . Drop 26 | . 5 1 5 . 5 . 1 8 1 Fire 65 | . 12 4 . . 10 1 . 13 25 Melee 13 | . . . . . . . . . 13 Ram 5 | . . . . . . . . . 5 Kick . | . . . . . . . . . . Crush . | . . . . . . . . . . Escape Stasis 14 | . . . . . . . . . 14 Rewire . | . . . . . . . . . . Trap . | . . . . . . . . . . Miscellaneous . | . . . . . . . . . . Route ------- -11/Scrapyard -10/Materials -10/Mines (discovered 2 exits: [*Mat] / *Exi) -10/Exiles -9/Mines -8/Materials -7/Factory (discovered 2 exits: Sto x2) -7/Waste -7/Factory (discovered 2 exits: *Sto / [*Low]) -7/Storage (discovered 1 exit: [*Fac]) History --------- Turn | Location | Event 8 | -11/Scrapyard | Discovered new exit (range 15) 48 | -11/Scrapyard | Entered Materials 189 | -10/Materials | Discovered new exit (range 5) 194 | -10/Materials | Entered Mines 219 | -10/Mines | YI-UF0 nonchalantly dropped a Grenade Launcher on the ground 303 | -10/Mines | Build established: Mutant 393 | -10/Mines | Discovered new exit (range 12) 517 | -10/Mines | Found the Drone Emporium 520 | -10/Mines | Learned location of Storage (-7) 522 | -10/Mines | Found Prototype Device 605 | -10/Mines | Deemed a non-threat by the Exiles lab entrance 605 | -10/Mines | Discovered new exit (range 5) 607 | -10/Mines | Entered Exiles 616 | -10/Exiles | Met 8R-AWN 623 | -10/Exiles | Met EX-HEX 635 | -10/Exiles | Met EX-BIN 640 | -10/Exiles | Aligned with FarCom system 640 | -10/Exiles | Given EX-Vault access code 650 | -10/Exiles | Opened EX-Vault 652 | -10/Exiles | Found Prototype Device 652 | -10/Exiles | Identified Trap Reconfigurator 656 | -10/Exiles | Found Prototype Energy Cannon 656 | -10/Exiles | Identified YOLO Cannon 670 | -10/Exiles | Warned to stay clear of 0b10 Research branches 672 | -10/Exiles | Exiles lab attacked by MAIN.C 803 | -10/Exiles | Discovered new exit (range 11) 807 | -10/Exiles | Left Exiles lab with Trap Reconfigurator 807 | -10/Exiles | Entered Mines 845 | -9/Mines | Discovered new exit (range 7) 896 | -9/Mines | Entered Materials 896 | -8/Materials | Evolved 4 slots: Utility x4 896 | -8/Materials | Identified Decoy Drone Bay 1020 | -8/Materials | Discovered new exit (range 32) 1093 | -8/Materials | Entered Factory 1093 | -7/Factory | Evolved 2 slots: Utility x2 1094 | -7/Factory | Identified exit to Storage 1491 | -7/Factory | Sucked down chute 1491 | -7/Factory | Entered Waste 1492 | -7/Waste | Met a frightened Derelict 1494 | -7/Waste | Spotted C-40 Crusher 1496 | -7/Waste | Spotted C-40 Crusher 1497 | -7/Waste | Spotted C-40 Crusher 1506 | -7/Waste | EMP discharged 1506 | -7/Waste | Crushed by Compactor (1 part destroyed, 1 dropped) 1513 | -7/Waste | Spotted C-40 Crusher 1515 | -7/Waste | Spotted C-40 Crusher 1516 | -7/Waste | Spotted C-40 Crusher 1527 | -7/Waste | Discovered new exit (range 10) 1530 | -7/Waste | Identified exit to Factory 1531 | -7/Waste | Entered Factory 2423 | -7/Factory | Discovered exit to Storage (range 18) 2433 | -7/Factory | Discovered new exit (range 12) 2436 | -7/Factory | Entered Storage 2664 | -7/Storage | Core integrity fell below 50% 2666 | -7/Storage | Found Prototype Launcher 2666 | -7/Storage | Identified Scatter Rocket Array 2672 | -7/Storage | Lost 5 parts (1p1n1u2w) 2676 | -7/Storage | Core integrity fell below 20% 2695 | -7/Storage | Discovered new exit (range 21) 2697 | -7/Storage | Destroyed by Y-54 Guardian with Gatling Laser Last Messages --------------- 02675_ U-05 Engineer lays Concrete. 02678_ Scatter Rocket Array destroyed. 02678_ U-05 Engineer lays Concrete. 02680_ U-05 Engineer builds a Wall. 02682_ The unstable cave ceiling collapses. 02682_ U-05 Engineer lays Concrete. 02684_ Slammed into G-47 Trooper. 02686_ Slammed into U-05 Engineer. 02688_ ALERT: Construction progress impeded, dispatching reinforcements to local area. 02689_ Connecting with Terminal... >>Schematic(Imp. Core Shielding) Downloading schematic... Imp. Core Shielding Rating: 5 Schematic downloaded. 02694_ Slug penetrates K-01 Serf. 02694_ G-47 Trooper suffers critical hit. 02695_ EXIT=FOUND 02697_ Penetrated by Slug. Map ----- +----------------------------------------------------+ | ??????????????????????????????? | | ??????????????????????????????? | | ??????????????????????????????? | | ??????????????????????????????? | | ??????????????????????????????? | | ????###???????????????????????? | | ???# ???????????????????????? | | ???# < ???????????????????????? | | ???# ???????????????????????? | | ???# ???????????????????????? | | ???# #??????????????????????? | | ???# g??????????????????????? | | ???# #??????????????????????? | | ???# g#??????????????????????? | | ???# #??????????????????????? | | ??## ##?????????????????????? | | ??# #?????????????????????? | | ??# #?????????????????????? | | ??# Y ??????????????????????? | | ??# ??????????????????????? | | ??? ??????????????????????? | | ???# #??????????????????????? | | ???# #?######### #??????????? | | ???# #? Y #??????????? | | ???# # """"" ???????????? | | ???# @# """"" ??w????????? | | ???# + """"" ??????????a? | | ???# # w #??????????? | | ???# # #??????????? | | ???# #? #??????????? | | ??## #############??????????? | | ??# #?????????????????????? | | ??# "" ####??????????????????? | | ??# T" #??????????????????? | | ??# h ## #??????????????????? | | ??# ##g#??????????????????? | | ??###+####Y#??????????????????? | | ?????????# #######?############ | | ?????????# ## # #?# # | | ?????????#+## # ## #? | | ?????????# #? | | ?????????# #? | | ?????????# " " """ #? | | ?????????# g "Y" """ #? | | ?????????# """ """ #? | | ?????????# #? | | ?????????# ####+#####? | | ?????????# ##??? | | ?????????# % T#### | | ?????????### ## | +----------------------------------------------------+ Best States ------------- Heat Dissipation 34 Energy Generation 10 Energy Capacity 325 Matter Stores 300 Matter Capacity 300 Sight Range 22 Robot Scan Range 13 Terrain Scan Density 10 Additional Mass Support 15 Armor Coverage 150 Evasion (%) 62 Targeting Accuracy 8 Melee Accuracy 5 Offensive Hacking 20 Item Schematics ----------------- Med. Battery | -8/Materials | Scanalyzed Imp. Core Shielding | -7/Storage | Hacked Robot Schematics ------------------ None Fabricated ------------ Nothing Alien Tech Used ----------------- None Achievements -------------- None Challenges ------------ None Game ------ Seed TitaniumShieldEdition Manual? 0 Play Time 00:39:16 Cumulative 150.1 hours Start 2021.06.16 @ 11:33:13 End 2021.06.20 @ 03:56:15 Sessions 1 Manual Loads 0 Difficulty Rogue Special Mode None Game No. 218 Rogue 194 Adventurer 22 Explorer 2 Win Type - Total 1 Types 1/0/0/0/0/0/0/0/0 Lore% 53 Gallery% 59 Achievement% 45 Wizard Run 0 Options --------- ASCII 0 Keyboard 0 Movement Numpad Keybinds 0 Fullscreen 1 Font 14/SmallcapsGlow Map View 84x54 Tactical HUD 1 Map Filters NONE Filters NONE Steam 1 RUN: 4d887384-c748-44ab-86a5-5f813b5e3e37